{"text_format":"1","workbook":"xlsx","n_sheets":3,"sheets":["1","Лист2","Лист2 (2)"],"not_rendered":{"charts":0,"images":0,"macros":1,"external_links":0,"defined_names":5,"comments":0,"pivot_tables":0},"unopened":[],"bounds":{"document_bytes":16777216,"sheet_cells":100000,"rows_first":2000,"rows_last":500,"rows_between":2000,"halvings":0,"cell_chars":16384,"cell_head_chars":4096},"cells_cut":0,"cells_raw":0,"read":"whole","date_system":"1900"}

{"sheet":"1","index":0,"n_rows":200,"n_cols":60,"rows_kept":200,"cut":false,"hidden":false,"merged":[[0,4,0,51],[0,2,1,2],[0,1,1,1],[0,55,1,55],[0,56,1,56],[0,54,1,54],[0,52,1,52],[0,53,1,53]]}
[null,null,null,null,"Выставление счетов по месяцам",null,null,null,null,null,null,null,null,null,null,null,null,null,null,null,null,null,null,null,null,null,null,null,null,null,null,null,null,null,null,null,null,null,null,null,null,null,null,null,null,null,null,null,null,null,null,null,"Выставленные счет","Оплаченные счета","Сумма договора","Долг, переплата"]
[null,null,null,null,"Январь",{"$f":"R2","v":"Опл"},"дата","Февраль",{"$f":"F2","v":"Опл"},"дата","Март",{"$f":"I2","v":"Опл"},"дата",{"$f":"Z2","v":"Выставленные счета"},{"$f":"AA2","v":"Оплаченные счета"},"1 кв.","апрель",{"$f":"U2","v":"Опл"},"дата","Май","Опл","дата","Июнь",{"$f":"+U2","v":"Опл"},"дата","Выставленные счета","Оплаченные счета","2 кв.","Июль",{"$f":"X2","v":"Опл"},"дата","Август",{"$f":"AD2","v":"Опл"},"дата","Сентябрь",{"$f":"AG2","v":"Опл"},"дата","Выставленные счета","Оплаченные счета","3 кв.","Октябрь",{"$f":"AJ2","v":"Опл"},"дата","Ноябрь",{"$f":"AP2","v":"Опл"},"дата","Декабрь",{"$f":"AS2","v":"Опл"},"дата","Выставленные счета","Оплаченные счета","4 кв.",null,null,null,null,null,"сумма сылка на последний платеж","дата последнего платежа ","июль"]
[1,"Иванов Тван Иваныч","01\\01\\01","Приветн",2646,1000,"2014-02-12",null,null,null,null,null,null,null,{"$f":"F3+I3+L3","v":1000},null,null,null,null,null,null,null,null,null,null,{"$f":"Q3+T3+W3","v":0},{"$f":"R3+U3+X3","v":0},null,null,null,null,null,null,null,1,null,null,{"$f":"AC3+AF3+AI3","v":1},{"$f":"AD3+AG3+AJ3","v":0},null,null,null,null,null,null,null,null,null,null,{"$f":"AO3+AR3+AU3","v":0},{"$f":"AP3+AS3+AV3","v":0},null,{"$f":"Z3+AL3+AX3+N3","v":1},null,1320.96,null,null,{"$f":"LOOKUP(2,1/(($E$2:$BE$2=\"Опл\")*(E3:BE3>0)),E3:BE3)","v":1000},{"$f":"LOOKUP(2,1/(($E$2:$BE$2=\"Дата\")*(E3:BE3>0)),E3:BE3)","v":"2014-02-12"}]
[2,"Чтоб перейти на счет №2 нажмите ссылку в ячейке А4",null,null,null,null,null,null,null,null,null,null,null,{"$f":"SUM(E4,H4,K4)","v":0},{"$f":"F4+I4+L4","v":0},null,null,null,null,null,null,null,null,null,null,{"$f":"Q4+T4+W4","v":0},{"$f":"R4+U4+X4","v":0},null,null,null,null,null,null,null,null,null,null,{"$f":"AC4+AF4+AI4","v":0},{"$f":"AD4+AG4+AJ4","v":0},null,null,null,null,null,null,null,null,null,null,{"$f":"AO4+AR4+AU4","v":0},{"$f":"AP4+AS4+AV4","v":0},null,{"$f":"Z4+AL4+AX4+N4","v":0},null,null,null,null,{"$error":"#N/A"},{"$error":"#N/A"}]
[3,null,null,null,null,null,null,null,null,null,null,null,null,0,0,null,null,null,null,null,null,null,null,null,null,0,0,null,null,null,null,null,null,null,null,null,null,0,0,null,null,null,null,null,null,null,null,null,null,0,0,null,{"$f":"Z5+AL5+AX5+N5","v":0},null,null,null,null,{"$error":"#N/A"},{"$error":"#N/A"}]
[4,null,null,null,null,null,null,null,null,null,null,null,null,0,0,null,null,null,null,null,null,null,null,null,null,0,0,null,null,null,null,null,null,null,null,null,null,0,0,null,null,null,null,null,null,null,null,null,null,0,0,null,{"$f":"Z6+AL6+AX6+N6","v":0},null,null,null,null,{"$error":"#N/A"},{"$error":"#N/A"}]
[5,null,null,null,null,null,null,null,null,null,null,null,null,0,0,null,null,null,null,null,null,null,null,null,null,0,0,null,null,null,null,null,null,null,null,null,null,0,0,null,null,null,null,null,null,null,null,null,null,0,0,null,null,null,null,null,null,{"$error":"#N/A"},{"$error":"#N/A"}]
[6,null,null,null,null,null,null,null,null,null,null,null,null,0,0,null,null,null,null,null,null,null,null,null,null,0,0,null,null,null,null,null,null,null,null,null,null,0,0,null,null,null,null,null,null,null,null,null,null,0,0,null,null,null,null,null,null,{"$error":"#N/A"},{"$error":"#N/A"}]
[7,null,null,null,null,null,null,null,null,null,null,null,null,0,0,null,null,null,null,null,null,null,null,null,null,0,0,null,null,null,null,null,null,null,null,null,null,0,0,null,null,null,null,null,null,null,null,null,null,0,0,null,null,null,null,null,null,{"$error":"#N/A"},{"$error":"#N/A"}]
[8,null,null,null,null,null,null,null,null,null,null,null,null,0,0,null,null,null,null,null,null,null,null,null,null,0,0,null,null,null,null,null,null,null,null,null,null,0,0,null,null,null,null,null,null,null,null,null,null,0,0,null,null,null,null,null,null,{"$error":"#N/A"},{"$error":"#N/A"}]
[9,null,null,null,null,null,null,null,null,null,null,null,null,0,0,null,null,null,null,null,null,null,null,null,null,0,0,null,null,null,null,null,null,null,null,null,null,0,0,null,null,null,null,null,null,null,null,null,null,0,0,null,null,null,null,null,null,{"$error":"#N/A"},{"$error":"#N/A"}]
[10,null,null,null,null,null,null,null,null,null,null,null,null,0,0,null,null,null,null,null,null,null,null,null,null,0,0,null,null,null,null,null,null,null,null,null,null,0,0,null,null,null,null,null,null,null,null,null,null,0,0,null,null,null,null,null,null,{"$error":"#N/A"},{"$error":"#N/A"}]
[11,null,null,null,null,null,null,null,null,null,null,null,null,0,0,null,null,null,null,null,null,null,null,null,null,0,0,null,null,null,null,null,null,null,null,null,null,0,0,null,null,null,null,null,null,null,null,null,null,0,0,null,null,null,null,null,null,{"$error":"#N/A"},{"$error":"#N/A"}]
[12,null,null,null,null,null,null,null,null,null,null,null,null,0,0,null,null,null,null,null,null,null,null,null,null,0,0,null,null,null,null,null,null,null,null,null,null,0,0,null,null,null,null,null,null,null,null,null,null,0,0,null,null,null,null,null,null,{"$error":"#N/A"},{"$error":"#N/A"}]
[13,null,null,null,null,null,null,null,null,null,null,null,null,0,0,null,null,null,null,null,null,null,null,null,null,0,0,null,null,null,null,null,null,null,null,null,null,0,0,null,null,null,null,null,null,null,null,null,null,0,0,null,null,null,null,null,null,{"$error":"#N/A"},{"$error":"#N/A"}]
[14,null,null,null,null,null,null,null,null,null,null,null,null,0,0,null,null,null,null,null,null,null,null,null,null,0,0,null,null,null,null,null,null,null,null,null,null,0,0,null,null,null,null,null,null,null,null,null,null,0,0,null,null,null,null,null,null,{"$error":"#N/A"},{"$error":"#N/A"}]
[15,null,null,null,null,null,null,null,null,null,null,null,null,0,0,null,null,null,null,null,null,null,null,null,null,0,0,null,null,null,null,null,null,null,null,null,null,0,0,null,null,null,null,null,null,null,null,null,null,0,0,null,null,null,null,null,null,{"$error":"#N/A"},{"$error":"#N/A"}]
[16,null,null,null,null,null,null,null,null,null,null,null,null,0,0,null,null,null,null,null,null,null,null,null,null,0,0,null,null,null,null,null,null,null,null,null,null,0,0,null,null,null,null,null,null,null,null,null,null,0,0,null,null,null,null,null,null,{"$error":"#N/A"},{"$error":"#N/A"}]
[17,null,null,null,null,null,null,null,null,null,null,null,null,0,0,null,null,null,null,null,null,null,null,null,null,0,0,null,null,null,null,null,null,null,null,null,null,0,0,null,null,null,null,null,null,null,null,null,null,0,0,null,null,null,null,null,null,{"$error":"#N/A"},{"$error":"#N/A"}]
[18,null,null,null,null,null,null,null,null,null,null,null,null,0,0,null,null,null,null,null,null,null,null,null,null,0,0,null,null,null,null,null,null,null,null,null,null,0,0,null,null,null,null,null,null,null,null,null,null,0,0,null,null,null,null,null,null,{"$error":"#N/A"},{"$error":"#N/A"}]
[19,null,null,null,null,null,null,null,null,null,null,null,null,0,0,null,null,null,null,null,null,null,null,null,null,0,0,null,null,null,null,null,null,null,null,null,null,0,0,null,null,null,null,null,null,null,null,null,null,0,0,null,null,null,null,null,null,{"$error":"#N/A"},{"$error":"#N/A"}]
[20,null,null,null,null,null,null,null,null,null,null,null,null,0,0,null,null,null,null,null,null,null,null,null,null,0,0,null,null,null,null,null,null,null,null,null,null,0,0,null,null,null,null,null,null,null,null,null,null,0,0,null,null,null,null,null,null,{"$error":"#N/A"},{"$error":"#N/A"}]
[21,null,null,null,null,null,null,null,null,null,null,null,null,0,0,null,null,null,null,null,null,null,null,null,null,0,0,null,null,null,null,null,null,null,null,null,null,0,0,null,null,null,null,null,null,null,null,null,null,0,0,null,null,null,null,null,null,{"$error":"#N/A"},{"$error":"#N/A"}]
[22,null,null,null,null,null,null,null,null,null,null,null,null,0,0,null,null,null,null,null,null,null,null,null,null,0,0,null,null,null,null,null,null,null,null,null,null,0,0,null,null,null,null,null,null,null,null,null,null,0,0,null,null,null,null,null,null,{"$error":"#N/A"},{"$error":"#N/A"}]
[23,null,null,null,null,null,null,null,null,null,null,null,null,0,0,null,null,null,null,null,null,null,null,null,null,0,0,null,null,null,null,null,null,null,null,null,null,0,0,null,null,null,null,null,null,null,null,null,null,0,0,null,null,null,null,null,null,{"$error":"#N/A"},{"$error":"#N/A"}]
[24,null,null,null,null,null,null,null,null,null,null,null,null,0,0,null,null,null,null,null,null,null,null,null,null,0,0,null,null,null,null,null,null,null,null,null,null,0,0,null,null,null,null,null,null,null,null,null,null,0,0,null,null,null,null,null,null,{"$error":"#N/A"},{"$error":"#N/A"}]
[25,null,null,null,null,null,null,null,null,null,null,null,null,0,0,null,null,null,null,null,null,null,null,null,null,0,0,null,null,null,null,null,null,null,null,null,null,0,0,null,null,null,null,null,null,null,null,null,null,0,0,null,null,null,null,null,null,{"$error":"#N/A"},{"$error":"#N/A"}]
[26,null,null,null,null,null,null,null,null,null,null,null,null,0,0,null,null,null,null,null,null,null,null,null,null,0,0,null,null,null,null,null,null,null,null,null,null,0,0,null,null,null,null,null,null,null,null,null,null,0,0,null,null,null,null,null,null,{"$error":"#N/A"},{"$error":"#N/A"}]
[27,null,null,null,null,null,null,null,null,null,null,null,null,0,0,null,null,null,null,null,null,null,null,null,null,0,0,null,null,null,null,null,null,null,null,null,null,0,0,null,null,null,null,null,null,null,null,null,null,0,0,null,null,null,null,null,null,{"$error":"#N/A"},{"$error":"#N/A"}]
[28,null,null,null,null,null,null,null,null,null,null,null,null,0,0,null,null,null,null,null,null,null,null,null,null,0,0,null,null,null,null,null,null,null,null,null,null,0,0,null,null,null,null,null,null,null,null,null,null,0,0,null,null,null,null,null,null,{"$error":"#N/A"},{"$error":"#N/A"}]
[29,null,null,null,null,null,null,null,null,null,null,null,null,0,0,null,null,null,null,null,null,null,null,null,null,0,0,null,null,null,null,null,null,null,null,null,null,0,0,null,null,null,null,null,null,null,null,null,null,0,0,null,null,null,null,null,null,{"$error":"#N/A"},{"$error":"#N/A"}]
[30,null,null,null,null,null,null,null,null,null,null,null,null,0,0,null,null,null,null,null,null,null,null,null,null,0,0,null,null,null,null,null,null,null,null,null,null,0,0,null,null,null,null,null,null,null,null,null,null,0,0,null,null,null,null,null,null,{"$error":"#N/A"},{"$error":"#N/A"}]
[31,null,null,null,null,null,null,null,null,null,null,null,null,0,0,null,null,null,null,null,null,null,null,null,null,0,0,null,null,null,null,null,null,null,null,null,null,0,0,null,null,null,null,null,null,null,null,null,null,0,0,null,null,null,null,null,null,{"$error":"#N/A"},{"$error":"#N/A"}]
[32,null,null,null,null,null,null,null,null,null,null,null,null,0,0,null,null,null,null,null,null,null,null,null,null,0,0,null,null,null,null,null,null,null,null,null,null,0,0,null,null,null,null,null,null,null,null,null,null,0,0,null,null,null,null,null,null,{"$error":"#N/A"},{"$error":"#N/A"}]
[33,null,null,null,null,null,null,null,null,null,null,null,null,0,0,null,null,null,null,null,null,null,null,null,null,0,0,null,null,null,null,null,null,null,null,null,null,0,0,null,null,null,null,null,null,null,null,null,null,0,0,null,null,null,null,null,null,{"$f":"LOOKUP(2,1/(($E$2:$BE$2=\"Опл\")*(E35:BE35>0)),E35:BE35)","v":{"$error":"#N/A"}},{"$f":"LOOKUP(2,1/(($E$2:$BE$2=\"Дата\")*(E35:BE35>0)),E35:BE35)","v":{"$error":"#N/A"}}]
[34,null,null,null,null,null,null,null,null,null,null,null,null,0,0,null,null,null,null,null,null,null,null,null,null,0,0,null,null,null,null,null,null,null,null,null,null,0,0,null,null,null,null,null,null,null,null,null,null,0,0,null,null,null,null,null,null,{"$error":"#N/A"},{"$error":"#N/A"}]
[35,null,null,null,null,null,null,null,null,null,null,null,null,0,0,null,null,null,null,null,null,null,null,null,null,0,0,null,null,null,null,null,null,null,null,null,null,0,0,null,null,null,null,null,null,null,null,null,null,0,0,null,null,null,null,null,null,{"$error":"#N/A"},{"$error":"#N/A"}]
[36,null,null,null,null,null,null,null,null,null,null,null,null,0,0,null,null,null,null,null,null,null,null,null,null,0,0,null,null,null,null,null,null,null,null,null,null,0,0,null,null,null,null,null,null,null,null,null,null,0,0,null,null,null,null,null,null,{"$error":"#N/A"},{"$error":"#N/A"}]
[37,null,null,null,null,null,null,null,null,null,null,null,null,0,0,null,null,null,null,null,null,null,null,null,null,0,0,null,null,null,null,null,null,null,null,null,null,0,0,null,null,null,null,null,null,null,null,null,null,0,0,null,null,null,null,null,null,{"$error":"#N/A"},{"$error":"#N/A"}]
[38,null,null,null,null,null,null,null,null,null,null,null,null,0,0,null,null,null,null,null,null,null,null,null,null,0,0,null,null,null,null,null,null,null,null,null,null,0,0,null,null,null,null,null,null,null,null,null,null,0,0,null,null,null,null,null,null,{"$error":"#N/A"},{"$error":"#N/A"}]
[39,null,null,null,null,null,null,null,null,null,null,null,null,0,0,null,null,null,null,null,null,null,null,null,null,0,0,null,null,null,null,null,null,null,null,null,null,0,0,null,null,null,null,null,null,null,null,null,null,0,0,null,null,null,null,null,null,{"$error":"#N/A"},{"$error":"#N/A"}]
[40,null,null,null,null,null,null,null,null,null,null,null,null,0,0,null,null,null,null,null,null,null,null,null,null,0,0,null,null,null,null,null,null,null,null,null,null,0,0,null,null,null,null,null,null,null,null,null,null,0,0,null,null,null,null,null,null,{"$error":"#N/A"},{"$error":"#N/A"}]
[41,null,null,null,null,null,null,null,null,null,null,null,null,0,0,null,null,null,null,null,null,null,null,null,null,0,0,null,null,null,null,null,null,null,null,null,null,0,0,null,null,null,null,null,null,null,null,null,null,0,0,null,null,null,null,null,null,{"$error":"#N/A"},{"$error":"#N/A"}]
[42,null,null,null,null,null,null,null,null,null,null,null,null,0,0,null,null,null,null,null,null,null,null,null,null,0,0,null,null,null,null,null,null,null,null,null,null,0,0,null,null,null,null,null,null,null,null,null,null,0,0,null,null,null,null,null,null,{"$error":"#N/A"},{"$error":"#N/A"}]
[43,null,null,null,null,null,null,null,null,null,null,null,null,0,0,null,null,null,null,null,null,null,null,null,null,0,0,null,null,null,null,null,null,null,null,null,null,0,0,null,null,null,null,null,null,null,null,null,null,0,0,null,null,null,null,null,null,{"$error":"#N/A"},{"$error":"#N/A"}]
[44,null,null,null,null,null,null,null,null,null,null,null,null,0,0,null,null,null,null,null,null,null,null,null,null,0,0,null,null,null,null,null,null,null,null,null,null,0,0,null,null,null,null,null,null,null,null,null,null,0,0,null,null,null,null,null,null,{"$error":"#N/A"},{"$error":"#N/A"}]
[45,null,null,null,null,null,null,null,null,null,null,null,null,0,0,null,null,null,null,null,null,null,null,null,null,0,0,null,null,null,null,null,null,null,null,null,null,0,0,null,null,null,null,null,null,null,null,null,null,0,0,null,null,null,null,null,null,{"$error":"#N/A"},{"$error":"#N/A"}]
[46,null,null,null,null,null,null,null,null,null,null,null,null,0,0,null,null,null,null,null,null,null,null,null,null,0,0,null,null,null,null,null,null,null,null,null,null,0,0,null,null,null,null,null,null,null,null,null,null,0,0,null,null,null,null,null,null,{"$error":"#N/A"},{"$error":"#N/A"}]
[47,null,null,null,null,null,null,null,null,null,null,null,null,0,0,null,null,null,null,null,null,null,null,null,null,0,0,null,null,null,null,null,null,null,null,null,null,0,0,null,null,null,null,null,null,null,null,null,null,0,0,null,null,null,null,null,null,{"$error":"#N/A"},{"$error":"#N/A"}]
[48,null,null,null,null,null,null,null,null,null,null,null,null,0,0,null,null,null,null,null,null,null,null,null,null,0,0,null,null,null,null,null,null,null,null,null,null,0,0,null,null,null,null,null,null,null,null,null,null,0,0,null,null,null,null,null,null,{"$error":"#N/A"},{"$error":"#N/A"}]
[49,null,null,null,null,null,null,null,null,null,null,null,null,0,0,null,null,null,null,null,null,null,null,null,null,0,0,null,null,null,null,null,null,null,null,null,null,0,0,null,null,null,null,null,null,null,null,null,null,0,0,null,null,null,null,null,null,{"$error":"#N/A"},{"$error":"#N/A"}]
[50,null,null,null,null,null,null,null,null,null,null,null,null,0,0,null,null,null,null,null,null,null,null,null,null,0,0,null,null,null,null,null,null,null,null,null,null,0,0,null,null,null,null,null,null,null,null,null,null,0,0,null,null,null,null,null,null,{"$error":"#N/A"},{"$error":"#N/A"}]
[51,null,null,null,null,null,null,null,null,null,null,null,null,0,0,null,null,null,null,null,null,null,null,null,null,0,0,null,null,null,null,null,null,null,null,null,null,0,0,null,null,null,null,null,null,null,null,null,null,0,0,null,null,null,null,null,null,{"$error":"#N/A"},{"$error":"#N/A"}]
[52,null,null,null,null,null,null,null,null,null,null,null,null,0,0,null,null,null,null,null,null,null,null,null,null,0,0,null,null,null,null,null,null,null,null,null,null,0,0,null,null,null,null,null,null,null,null,null,null,0,0,null,null,null,null,null,null,{"$error":"#N/A"},{"$error":"#N/A"}]
[53,null,null,null,null,null,null,null,null,null,null,null,null,0,0,null,null,null,null,null,null,null,null,null,null,0,0,null,null,null,null,null,null,null,null,null,null,0,0,null,null,null,null,null,null,null,null,null,null,0,0,null,null,null,null,null,null,{"$error":"#N/A"},{"$error":"#N/A"}]
[54,null,null,null,null,null,null,null,null,null,null,null,null,0,0,null,null,null,null,null,null,null,null,null,null,0,0,null,null,null,null,null,null,null,null,null,null,0,0,null,null,null,null,null,null,null,null,null,null,0,0,null,null,null,null,null,null,{"$error":"#N/A"},{"$error":"#N/A"}]
[55,null,null,null,null,null,null,null,null,null,null,null,null,0,0,null,null,null,null,null,null,null,null,null,null,0,0,null,null,null,null,null,null,null,null,null,null,0,0,null,null,null,null,null,null,null,null,null,null,0,0,null,null,null,null,null,null,{"$error":"#N/A"},{"$error":"#N/A"}]
[56,null,null,null,null,null,null,null,null,null,null,null,null,0,0,null,null,null,null,null,null,null,null,null,null,0,0,null,null,null,null,null,null,null,null,null,null,0,0,null,null,null,null,null,null,null,null,null,null,0,0,null,null,null,null,null,null,{"$error":"#N/A"},{"$error":"#N/A"}]
[57,null,null,null,null,null,null,null,null,null,null,null,null,0,0,null,null,null,null,null,null,null,null,null,null,0,0,null,null,null,null,null,null,null,null,null,null,0,0,null,null,null,null,null,null,null,null,null,null,0,0,null,null,null,null,null,null,{"$error":"#N/A"},{"$error":"#N/A"}]
[58,null,null,null,null,null,null,null,null,null,null,null,null,0,0,null,null,null,null,null,null,null,null,null,null,0,0,null,null,null,null,null,null,null,null,null,null,0,0,null,null,null,null,null,null,null,null,null,null,0,0,null,null,null,null,null,null,{"$error":"#N/A"},{"$error":"#N/A"}]
[59,null,null,null,null,null,null,null,null,null,null,null,null,0,0,null,null,null,null,null,null,null,null,null,null,0,0,null,null,null,null,null,null,null,null,null,null,0,0,null,null,null,null,null,null,null,null,null,null,0,0,null,null,null,null,null,null,{"$error":"#N/A"},{"$error":"#N/A"}]
[60,null,null,null,null,null,null,null,null,null,null,null,null,0,0,null,null,null,null,null,null,null,null,null,null,0,0,null,null,null,null,null,null,null,null,null,null,0,0,null,null,null,null,null,null,null,null,null,null,0,0,null,null,null,null,null,null,{"$error":"#N/A"},{"$error":"#N/A"}]
[61,null,null,null,null,null,null,null,null,null,null,null,null,0,0,null,null,null,null,null,null,null,null,null,null,0,0,null,null,null,null,null,null,null,null,null,null,0,0,null,null,null,null,null,null,null,null,null,null,0,0,null,null,null,null,null,null,{"$error":"#N/A"},{"$error":"#N/A"}]
[62,null,null,null,null,null,null,null,null,null,null,null,null,0,0,null,null,null,null,null,null,null,null,null,null,0,0,null,null,null,null,null,null,null,null,null,null,0,0,null,null,null,null,null,null,null,null,null,null,0,0,null,null,null,null,null,null,{"$error":"#N/A"},{"$error":"#N/A"}]
[63,null,null,null,null,null,null,null,null,null,null,null,null,0,0,null,null,null,null,null,null,null,null,null,null,0,0,null,null,null,null,null,null,null,null,null,null,0,0,null,null,null,null,null,null,null,null,null,null,0,0,null,null,null,null,null,null,{"$error":"#N/A"},{"$error":"#N/A"}]
[64,null,null,null,null,null,null,null,null,null,null,null,null,0,0,null,null,null,null,null,null,null,null,null,null,0,0,null,null,null,null,null,null,null,null,null,null,0,0,null,null,null,null,null,null,null,null,null,null,0,0,null,null,null,null,null,null,{"$error":"#N/A"},{"$error":"#N/A"}]
[65,null,null,null,null,null,null,null,null,null,null,null,null,0,0,null,null,null,null,null,null,null,null,null,null,0,0,null,null,null,null,null,null,null,null,null,null,0,0,null,null,null,null,null,null,null,null,null,null,0,0,null,null,null,null,null,null,{"$f":"LOOKUP(2,1/(($E$2:$BE$2=\"Опл\")*(E67:BE67>0)),E67:BE67)","v":{"$error":"#N/A"}},{"$f":"LOOKUP(2,1/(($E$2:$BE$2=\"Дата\")*(E67:BE67>0)),E67:BE67)","v":{"$error":"#N/A"}}]
[66,null,null,null,null,null,null,null,null,null,null,null,null,{"$f":"SUM(E68,H68,K68)","v":0},{"$f":"F68+I68+L68","v":0},null,null,null,null,null,null,null,null,null,null,{"$f":"Q68+T68+W68","v":0},{"$f":"R68+U68+X68","v":0},null,null,null,null,null,null,null,null,null,null,{"$f":"AC68+AF68+AI68","v":0},{"$f":"AD68+AG68+AJ68","v":0},null,null,null,null,null,null,null,null,null,null,{"$f":"AO68+AR68+AU68","v":0},{"$f":"AP68+AS68+AV68","v":0},null,null,null,null,null,null,{"$error":"#N/A"},{"$error":"#N/A"}]
[67,null,null,null,null,null,null,null,null,null,null,null,null,0,0,null,null,null,null,null,null,null,null,null,null,0,0,null,null,null,null,null,null,null,null,null,null,0,0,null,null,null,null,null,null,null,null,null,null,0,0,null,null,null,null,null,null,{"$error":"#N/A"},{"$error":"#N/A"}]
[68,null,null,null,null,null,null,null,null,null,null,null,null,0,0,null,null,null,null,null,null,null,null,null,null,0,0,null,null,null,null,null,null,null,null,null,null,0,0,null,null,null,null,null,null,null,null,null,null,0,0,null,null,null,null,null,null,{"$error":"#N/A"},{"$error":"#N/A"}]
[69,null,null,null,null,null,null,null,null,null,null,null,null,0,0,null,null,null,null,null,null,null,null,null,null,0,0,null,null,null,null,null,null,null,null,null,null,0,0,null,null,null,null,null,null,null,null,null,null,0,0,null,null,null,null,null,null,{"$error":"#N/A"},{"$error":"#N/A"}]
[70,null,null,null,null,null,null,null,null,null,null,null,null,0,0,null,null,null,null,null,null,null,null,null,null,0,0,null,null,null,null,null,null,null,null,null,null,0,0,null,null,null,null,null,null,null,null,null,null,0,0,null,null,null,null,null,null,{"$error":"#N/A"},{"$error":"#N/A"}]
[71,null,null,null,null,null,null,null,null,null,null,null,null,0,0,null,null,null,null,null,null,null,null,null,null,0,0,null,null,null,null,null,null,null,null,null,null,0,0,null,null,null,null,null,null,null,null,null,null,0,0,null,null,null,null,null,null,{"$error":"#N/A"},{"$error":"#N/A"}]
[72,null,null,null,null,null,null,null,null,null,null,null,null,0,0,null,null,null,null,null,null,null,null,null,null,0,0,null,null,null,null,null,null,null,null,null,null,0,0,null,null,null,null,null,null,null,null,null,null,0,0,null,null,null,null,null,null,{"$error":"#N/A"},{"$error":"#N/A"}]
[73,null,null,null,null,null,null,null,null,null,null,null,null,0,0,null,null,null,null,null,null,null,null,null,null,0,0,null,null,null,null,null,null,null,null,null,null,0,0,null,null,null,null,null,null,null,null,null,null,0,0,null,null,null,null,null,null,{"$error":"#N/A"},{"$error":"#N/A"}]
[74,null,null,null,null,null,null,null,null,null,null,null,null,0,0,null,null,null,null,null,null,null,null,null,null,0,0,null,null,null,null,null,null,null,null,null,null,0,0,null,null,null,null,null,null,null,null,null,null,0,0,null,null,null,null,null,null,{"$error":"#N/A"},{"$error":"#N/A"}]
[75,null,null,null,null,null,null,null,null,null,null,null,null,0,0,null,null,null,null,null,null,null,null,null,null,0,0,null,null,null,null,null,null,null,null,null,null,0,0,null,null,null,null,null,null,null,null,null,null,0,0,null,null,null,null,null,null,{"$error":"#N/A"},{"$error":"#N/A"}]
[76,null,null,null,null,null,null,null,null,null,null,null,null,0,0,null,null,null,null,null,null,null,null,null,null,0,0,null,null,null,null,null,null,null,null,null,null,0,0,null,null,null,null,null,null,null,null,null,null,0,0,null,null,null,null,null,null,{"$error":"#N/A"},{"$error":"#N/A"}]
[77,null,null,null,null,null,null,null,null,null,null,null,null,0,0,null,null,null,null,null,null,null,null,null,null,0,0,null,null,null,null,null,null,null,null,null,null,0,0,null,null,null,null,null,null,null,null,null,null,0,0,null,null,null,null,null,null,{"$error":"#N/A"},{"$error":"#N/A"}]
[78,null,null,null,null,null,null,null,null,null,null,null,null,0,0,null,null,null,null,null,null,null,null,null,null,0,0,null,null,null,null,null,null,null,null,null,null,0,0,null,null,null,null,null,null,null,null,null,null,0,0,null,null,null,null,null,null,{"$error":"#N/A"},{"$error":"#N/A"}]
[79,null,null,null,null,null,null,null,null,null,null,null,null,0,0,null,null,null,null,null,null,null,null,null,null,0,0,null,null,null,null,null,null,null,null,null,null,0,0,null,null,null,null,null,null,null,null,null,null,0,0,null,null,null,null,null,null,{"$error":"#N/A"},{"$error":"#N/A"}]
[80,null,null,null,null,null,null,null,null,null,null,null,null,0,0,null,null,null,null,null,null,null,null,null,null,0,0,null,null,null,null,null,null,null,null,null,null,0,0,null,null,null,null,null,null,null,null,null,null,0,0,null,null,null,null,null,null,{"$error":"#N/A"},{"$error":"#N/A"}]
[81,null,null,null,null,null,null,null,null,null,null,null,null,0,0,null,null,null,null,null,null,null,null,null,null,0,0,null,null,null,null,null,null,null,null,null,null,0,0,null,null,null,null,null,null,null,null,null,null,0,0,null,null,null,null,null,null,{"$error":"#N/A"},{"$error":"#N/A"}]
[82,null,null,null,null,null,null,null,null,null,null,null,null,0,0,null,null,null,null,null,null,null,null,null,null,0,0,null,null,null,null,null,null,null,null,null,null,0,0,null,null,null,null,null,null,null,null,null,null,0,0,null,null,null,null,null,null,{"$error":"#N/A"},{"$error":"#N/A"}]
[83,null,null,null,null,null,null,null,null,null,null,null,null,0,0,null,null,null,null,null,null,null,null,null,null,0,0,null,null,null,null,null,null,null,null,null,null,0,0,null,null,null,null,null,null,null,null,null,null,0,0,null,null,null,null,null,null,{"$error":"#N/A"},{"$error":"#N/A"}]
[84,null,null,null,null,null,null,null,null,null,null,null,null,0,0,null,null,null,null,null,null,null,null,null,null,0,0,null,null,null,null,null,null,null,null,null,null,0,0,null,null,null,null,null,null,null,null,null,null,0,0,null,null,null,null,null,null,{"$error":"#N/A"},{"$error":"#N/A"}]
[85,null,null,null,null,null,null,null,null,null,null,null,null,0,0,null,null,null,null,null,null,null,null,null,null,0,0,null,null,null,null,null,null,null,null,null,null,0,0,null,null,null,null,null,null,null,null,null,null,0,0,null,null,null,null,null,null,{"$error":"#N/A"},{"$error":"#N/A"}]
[86,null,null,null,null,null,null,null,null,null,null,null,null,0,0,null,null,null,null,null,null,null,null,null,null,0,0,null,null,null,null,null,null,null,null,null,null,0,0,null,null,null,null,null,null,null,null,null,null,0,0,null,null,null,null,null,null,{"$error":"#N/A"},{"$error":"#N/A"}]
[87,null,null,null,null,null,null,null,null,null,null,null,null,0,0,null,null,null,null,null,null,null,null,null,null,0,0,null,null,null,null,null,null,null,null,null,null,0,0,null,null,null,null,null,null,null,null,null,null,0,0,null,null,null,null,null,null,{"$error":"#N/A"},{"$error":"#N/A"}]
[88,null,null,null,null,null,null,null,null,null,null,null,null,0,0,null,null,null,null,null,null,null,null,null,null,0,0,null,null,null,null,null,null,null,null,null,null,0,0,null,null,null,null,null,null,null,null,null,null,0,0,null,null,null,null,null,null,{"$error":"#N/A"},{"$error":"#N/A"}]
[89,null,null,null,null,null,null,null,null,null,null,null,null,0,0,null,null,null,null,null,null,null,null,null,null,0,0,null,null,null,null,null,null,null,null,null,null,0,0,null,null,null,null,null,null,null,null,null,null,0,0,null,null,null,null,null,null,{"$error":"#N/A"},{"$error":"#N/A"}]
[90,null,null,null,null,null,null,null,null,null,null,null,null,0,0,null,null,null,null,null,null,null,null,null,null,0,0,null,null,null,null,null,null,null,null,null,null,0,0,null,null,null,null,null,null,null,null,null,null,0,0,null,null,null,null,null,null,{"$error":"#N/A"},{"$error":"#N/A"}]
[91,null,null,null,null,null,null,null,null,null,null,null,null,0,0,null,null,null,null,null,null,null,null,null,null,0,0,null,null,null,null,null,null,null,null,null,null,0,0,null,null,null,null,null,null,null,null,null,null,0,0,null,null,null,null,null,null,{"$error":"#N/A"},{"$error":"#N/A"}]
[92,null,null,null,null,null,null,null,null,null,null,null,null,0,0,null,null,null,null,null,null,null,null,null,null,0,0,null,null,null,null,null,null,null,null,null,null,0,0,null,null,null,null,null,null,null,null,null,null,0,0,null,null,null,null,null,null,{"$error":"#N/A"},{"$error":"#N/A"}]
[93,null,null,null,null,null,null,null,null,null,null,null,null,0,0,null,null,null,null,null,null,null,null,null,null,0,0,null,null,null,null,null,null,null,null,null,null,0,0,null,null,null,null,null,null,null,null,null,null,0,0,null,null,null,null,null,null,{"$error":"#N/A"},{"$error":"#N/A"}]
[94,null,null,null,null,null,null,null,null,null,null,null,null,0,0,null,null,null,null,null,null,null,null,null,null,0,0,null,null,null,null,null,null,null,null,null,null,0,0,null,null,null,null,null,null,null,null,null,null,0,0,null,null,null,null,null,null,{"$error":"#N/A"},{"$error":"#N/A"}]
[95,null,null,null,null,null,null,null,null,null,null,null,null,0,0,null,null,null,null,null,null,null,null,null,null,0,0,null,null,null,null,null,null,null,null,null,null,0,0,null,null,null,null,null,null,null,null,null,null,0,0,null,null,null,null,null,null,{"$error":"#N/A"},{"$error":"#N/A"}]
[96,null,null,null,null,null,null,null,null,null,null,null,null,0,0,null,null,null,null,null,null,null,null,null,null,0,0,null,null,null,null,null,null,null,null,null,null,0,0,null,null,null,null,null,null,null,null,null,null,0,0,null,null,null,null,null,null,{"$error":"#N/A"},{"$error":"#N/A"}]
[97,null,null,null,null,null,null,null,null,null,null,null,null,0,0,null,null,null,null,null,null,null,null,null,null,0,0,null,null,null,null,null,null,null,null,null,null,0,0,null,null,null,null,null,null,null,null,null,null,0,0,null,null,null,null,null,null,{"$f":"LOOKUP(2,1/(($E$2:$BE$2=\"Опл\")*(E99:BE99>0)),E99:BE99)","v":{"$error":"#N/A"}},{"$f":"LOOKUP(2,1/(($E$2:$BE$2=\"Дата\")*(E99:BE99>0)),E99:BE99)","v":{"$error":"#N/A"}}]
[98,null,null,null,null,null,null,null,null,null,null,null,null,0,0,null,null,null,null,null,null,null,null,null,null,0,0,null,null,null,null,null,null,null,null,null,null,0,0,null,null,null,null,null,null,null,null,null,null,0,0,null,null,null,null,null,null,{"$error":"#N/A"},{"$error":"#N/A"}]
[99,null,null,null,null,null,null,null,null,null,null,null,null,0,0,null,null,null,null,null,null,null,null,null,null,0,0,null,null,null,null,null,null,null,null,null,null,0,0,null,null,null,null,null,null,null,null,null,null,0,0,null,null,null,null,null,null,{"$error":"#N/A"},{"$error":"#N/A"}]
[100,null,null,null,null,null,null,null,null,null,null,null,null,0,0,null,null,null,null,null,null,null,null,null,null,0,0,null,null,null,null,null,null,null,null,null,null,0,0,null,null,null,null,null,null,null,null,null,null,0,0,null,null,null,null,null,null,{"$error":"#N/A"},{"$error":"#N/A"}]
[101,null,null,null,null,null,null,null,null,null,null,null,null,0,0,null,null,null,null,null,null,null,null,null,null,0,0,null,null,null,null,null,null,null,null,null,null,0,0,null,null,null,null,null,null,null,null,null,null,0,0,null,null,null,null,null,null,{"$error":"#N/A"},{"$error":"#N/A"}]
[102,null,null,null,null,null,null,null,null,null,null,null,null,0,0,null,null,null,null,null,null,null,null,null,null,0,0,null,null,null,null,null,null,null,null,null,null,0,0,null,null,null,null,null,null,null,null,null,null,0,0,null,null,null,null,null,null,{"$error":"#N/A"},{"$error":"#N/A"}]
[103,null,null,null,null,null,null,null,null,null,null,null,null,0,0,null,null,null,null,null,null,null,null,null,null,0,0,null,null,null,null,null,null,null,null,null,null,0,0,null,null,null,null,null,null,null,null,null,null,0,0,null,null,null,null,null,null,{"$error":"#N/A"},{"$error":"#N/A"}]
[104,null,null,null,null,null,null,null,null,null,null,null,null,0,0,null,null,null,null,null,null,null,null,null,null,0,0,null,null,null,null,null,null,null,null,null,null,0,0,null,null,null,null,null,null,null,null,null,null,0,0,null,null,null,null,null,null,{"$error":"#N/A"},{"$error":"#N/A"}]
[105,null,null,null,null,null,null,null,null,null,null,null,null,0,0,null,null,null,null,null,null,null,null,null,null,0,0,null,null,null,null,null,null,null,null,null,null,0,0,null,null,null,null,null,null,null,null,null,null,0,0,null,null,null,null,null,null,{"$error":"#N/A"},{"$error":"#N/A"}]
[106,null,null,null,null,null,null,null,null,null,null,null,null,0,0,null,null,null,null,null,null,null,null,null,null,0,0,null,null,null,null,null,null,null,null,null,null,0,0,null,null,null,null,null,null,null,null,null,null,0,0,null,null,null,null,null,null,{"$error":"#N/A"},{"$error":"#N/A"}]
[107,null,null,null,null,null,null,null,null,null,null,null,null,0,0,null,null,null,null,null,null,null,null,null,null,0,0,null,null,null,null,null,null,null,null,null,null,0,0,null,null,null,null,null,null,null,null,null,null,0,0,null,null,null,null,null,null,{"$error":"#N/A"},{"$error":"#N/A"}]
[108,null,null,null,null,null,null,null,null,null,null,null,null,0,0,null,null,null,null,null,null,null,null,null,null,0,0,null,null,null,null,null,null,null,null,null,null,0,0,null,null,null,null,null,null,null,null,null,null,0,0,null,null,null,null,null,null,{"$error":"#N/A"},{"$error":"#N/A"}]
[109,null,null,null,null,null,null,null,null,null,null,null,null,0,0,null,null,null,null,null,null,null,null,null,null,0,0,null,null,null,null,null,null,null,null,null,null,0,0,null,null,null,null,null,null,null,null,null,null,0,0,null,null,null,null,null,null,{"$error":"#N/A"},{"$error":"#N/A"}]
[110,null,null,null,null,null,null,null,null,null,null,null,null,0,0,null,null,null,null,null,null,null,null,null,null,0,0,null,null,null,null,null,null,null,null,null,null,0,0,null,null,null,null,null,null,null,null,null,null,0,0,null,null,null,null,null,null,{"$error":"#N/A"},{"$error":"#N/A"}]
[111,null,null,null,null,null,null,null,null,null,null,null,null,0,0,null,null,null,null,null,null,null,null,null,null,0,0,null,null,null,null,null,null,null,null,null,null,0,0,null,null,null,null,null,null,null,null,null,null,0,0,null,null,null,null,null,null,{"$error":"#N/A"},{"$error":"#N/A"}]
[112,null,null,null,null,null,null,null,null,null,null,null,null,0,0,null,null,null,null,null,null,null,null,null,null,0,0,null,null,null,null,null,null,null,null,null,null,0,0,null,null,null,null,null,null,null,null,null,null,0,0,null,null,null,null,null,null,{"$error":"#N/A"},{"$error":"#N/A"}]
[113,null,null,null,null,null,null,null,null,null,null,null,null,0,0,null,null,null,null,null,null,null,null,null,null,0,0,null,null,null,null,null,null,null,null,null,null,0,0,null,null,null,null,null,null,null,null,null,null,0,0,null,null,null,null,null,null,{"$error":"#N/A"},{"$error":"#N/A"}]
[114,null,null,null,null,null,null,null,null,null,null,null,null,0,0,null,null,null,null,null,null,null,null,null,null,0,0,null,null,null,null,null,null,null,null,null,null,0,0,null,null,null,null,null,null,null,null,null,null,0,0,null,null,null,null,null,null,{"$error":"#N/A"},{"$error":"#N/A"}]
[115,null,null,null,null,null,null,null,null,null,null,null,null,0,0,null,null,null,null,null,null,null,null,null,null,0,0,null,null,null,null,null,null,null,null,null,null,0,0,null,null,null,null,null,null,null,null,null,null,0,0,null,null,null,null,null,null,{"$error":"#N/A"},{"$error":"#N/A"}]
[116,null,null,null,null,null,null,null,null,null,null,null,null,0,0,null,null,null,null,null,null,null,null,null,null,0,0,null,null,null,null,null,null,null,null,null,null,0,0,null,null,null,null,null,null,null,null,null,null,0,0,null,null,null,null,null,null,{"$error":"#N/A"},{"$error":"#N/A"}]
[117,null,null,null,null,null,null,null,null,null,null,null,null,0,0,null,null,null,null,null,null,null,null,null,null,0,0,null,null,null,null,null,null,null,null,null,null,0,0,null,null,null,null,null,null,null,null,null,null,0,0,null,null,null,null,null,null,{"$error":"#N/A"},{"$error":"#N/A"}]
[118,null,null,null,null,null,null,null,null,null,null,null,null,0,0,null,null,null,null,null,null,null,null,null,null,0,0,null,null,null,null,null,null,null,null,null,null,0,0,null,null,null,null,null,null,null,null,null,null,0,0,null,null,null,null,null,null,{"$error":"#N/A"},{"$error":"#N/A"}]
[119,null,null,null,null,null,null,null,null,null,null,null,null,0,0,null,null,null,null,null,null,null,null,null,null,0,0,null,null,null,null,null,null,null,null,null,null,0,0,null,null,null,null,null,null,null,null,null,null,0,0,null,null,null,null,null,null,{"$error":"#N/A"},{"$error":"#N/A"}]
[120,null,null,null,null,null,null,null,null,null,null,null,null,0,0,null,null,null,null,null,null,null,null,null,null,0,0,null,null,null,null,null,null,null,null,null,null,0,0,null,null,null,null,null,null,null,null,null,null,0,0,null,null,null,null,null,null,{"$error":"#N/A"},{"$error":"#N/A"}]
[121,null,null,null,null,null,null,null,null,null,null,null,null,0,0,null,null,null,null,null,null,null,null,null,null,0,0,null,null,null,null,null,null,null,null,null,null,0,0,null,null,null,null,null,null,null,null,null,null,0,0,null,null,null,null,null,null,{"$error":"#N/A"},{"$error":"#N/A"}]
[122,null,null,null,null,null,null,null,null,null,null,null,null,0,0,null,null,null,null,null,null,null,null,null,null,0,0,null,null,null,null,null,null,null,null,null,null,0,0,null,null,null,null,null,null,null,null,null,null,0,0,null,null,null,null,null,null,{"$error":"#N/A"},{"$error":"#N/A"}]
[123,null,null,null,null,null,null,null,null,null,null,null,null,0,0,null,null,null,null,null,null,null,null,null,null,0,0,null,null,null,null,null,null,null,null,null,null,0,0,null,null,null,null,null,null,null,null,null,null,0,0,null,null,null,null,null,null,{"$error":"#N/A"},{"$error":"#N/A"}]
[124,null,null,null,null,null,null,null,null,null,null,null,null,0,0,null,null,null,null,null,null,null,null,null,null,0,0,null,null,null,null,null,null,null,null,null,null,0,0,null,null,null,null,null,null,null,null,null,null,0,0,null,null,null,null,null,null,{"$error":"#N/A"},{"$error":"#N/A"}]
[125,null,null,null,null,null,null,null,null,null,null,null,null,0,0,null,null,null,null,null,null,null,null,null,null,0,0,null,null,null,null,null,null,null,null,null,null,0,0,null,null,null,null,null,null,null,null,null,null,0,0,null,null,null,null,null,null,{"$error":"#N/A"},{"$error":"#N/A"}]
[126,null,null,null,null,null,null,null,null,null,null,null,null,0,0,null,null,null,null,null,null,null,null,null,null,0,0,null,null,null,null,null,null,null,null,null,null,0,0,null,null,null,null,null,null,null,null,null,null,0,0,null,null,null,null,null,null,{"$error":"#N/A"},{"$error":"#N/A"}]
[127,null,null,null,null,null,null,null,null,null,null,null,null,0,0,null,null,null,null,null,null,null,null,null,null,0,0,null,null,null,null,null,null,null,null,null,null,0,0,null,null,null,null,null,null,null,null,null,null,0,0,null,null,null,null,null,null,{"$error":"#N/A"},{"$error":"#N/A"}]
[128,null,null,null,null,null,null,null,null,null,null,null,null,0,0,null,null,null,null,null,null,null,null,null,null,0,0,null,null,null,null,null,null,null,null,null,null,0,0,null,null,null,null,null,null,null,null,null,null,0,0,null,null,null,null,null,null,{"$error":"#N/A"},{"$error":"#N/A"}]
[129,null,null,null,null,null,null,null,null,null,null,null,null,0,0,null,null,null,null,null,null,null,null,null,null,0,0,null,null,null,null,null,null,null,null,null,null,0,0,null,null,null,null,null,null,null,null,null,null,0,0,null,null,null,null,null,null,{"$f":"LOOKUP(2,1/(($E$2:$BE$2=\"Опл\")*(E131:BE131>0)),E131:BE131)","v":{"$error":"#N/A"}},{"$f":"LOOKUP(2,1/(($E$2:$BE$2=\"Дата\")*(E131:BE131>0)),E131:BE131)","v":{"$error":"#N/A"}}]
[130,null,null,null,null,null,null,null,null,null,null,null,null,{"$f":"SUM(E132,H132,K132)","v":0},{"$f":"F132+I132+L132","v":0},null,null,null,null,null,null,null,null,null,null,{"$f":"Q132+T132+W132","v":0},{"$f":"R132+U132+X132","v":0},null,null,null,null,null,null,null,null,null,null,{"$f":"AC132+AF132+AI132","v":0},{"$f":"AD132+AG132+AJ132","v":0},null,null,null,null,null,null,null,null,null,null,{"$f":"AO132+AR132+AU132","v":0},{"$f":"AP132+AS132+AV132","v":0},null,null,null,null,null,null,{"$error":"#N/A"},{"$error":"#N/A"}]
[131,null,null,null,null,null,null,null,null,null,null,null,null,0,0,null,null,null,null,null,null,null,null,null,null,0,0,null,null,null,null,null,null,null,null,null,null,0,0,null,null,null,null,null,null,null,null,null,null,0,0,null,null,null,null,null,null,{"$error":"#N/A"},{"$error":"#N/A"}]
[132,null,null,null,null,null,null,null,null,null,null,null,null,0,0,null,null,null,null,null,null,null,null,null,null,0,0,null,null,null,null,null,null,null,null,null,null,0,0,null,null,null,null,null,null,null,null,null,null,0,0,null,null,null,null,null,null,{"$error":"#N/A"},{"$error":"#N/A"}]
[133,null,null,null,null,null,null,null,null,null,null,null,null,0,0,null,null,null,null,null,null,null,null,null,null,0,0,null,null,null,null,null,null,null,null,null,null,0,0,null,null,null,null,null,null,null,null,null,null,0,0,null,null,null,null,null,null,{"$error":"#N/A"},{"$error":"#N/A"}]
[134,null,null,null,null,null,null,null,null,null,null,null,null,0,0,null,null,null,null,null,null,null,null,null,null,0,0,null,null,null,null,null,null,null,null,null,null,0,0,null,null,null,null,null,null,null,null,null,null,0,0,null,null,null,null,null,null,{"$error":"#N/A"},{"$error":"#N/A"}]
[135,null,null,null,null,null,null,null,null,null,null,null,null,0,0,null,null,null,null,null,null,null,null,null,null,0,0,null,null,null,null,null,null,null,null,null,null,0,0,null,null,null,null,null,null,null,null,null,null,0,0,null,null,null,null,null,null,{"$error":"#N/A"},{"$error":"#N/A"}]
[136,null,null,null,null,null,null,null,null,null,null,null,null,0,0,null,null,null,null,null,null,null,null,null,null,0,0,null,null,null,null,null,null,null,null,null,null,0,0,null,null,null,null,null,null,null,null,null,null,0,0,null,null,null,null,null,null,{"$error":"#N/A"},{"$error":"#N/A"}]
[137,null,null,null,null,null,null,null,null,null,null,null,null,0,0,null,null,null,null,null,null,null,null,null,null,0,0,null,null,null,null,null,null,null,null,null,null,0,0,null,null,null,null,null,null,null,null,null,null,0,0,null,null,null,null,null,null,{"$error":"#N/A"},{"$error":"#N/A"}]
[138,null,null,null,null,null,null,null,null,null,null,null,null,0,0,null,null,null,null,null,null,null,null,null,null,0,0,null,null,null,null,null,null,null,null,null,null,0,0,null,null,null,null,null,null,null,null,null,null,0,0,null,null,null,null,null,null,{"$error":"#N/A"},{"$error":"#N/A"}]
[139,null,null,null,null,null,null,null,null,null,null,null,null,0,0,null,null,null,null,null,null,null,null,null,null,0,0,null,null,null,null,null,null,null,null,null,null,0,0,null,null,null,null,null,null,null,null,null,null,0,0,null,null,null,null,null,null,{"$error":"#N/A"},{"$error":"#N/A"}]
[140,null,null,null,null,null,null,null,null,null,null,null,null,0,0,null,null,null,null,null,null,null,null,null,null,0,0,null,null,null,null,null,null,null,null,null,null,0,0,null,null,null,null,null,null,null,null,null,null,0,0,null,null,null,null,null,null,{"$error":"#N/A"},{"$error":"#N/A"}]
[141,null,null,null,null,null,null,null,null,null,null,null,null,0,0,null,null,null,null,null,null,null,null,null,null,0,0,null,null,null,null,null,null,null,null,null,null,0,0,null,null,null,null,null,null,null,null,null,null,0,0,null,null,null,null,null,null,{"$error":"#N/A"},{"$error":"#N/A"}]
[142,null,null,null,null,null,null,null,null,null,null,null,null,0,0,null,null,null,null,null,null,null,null,null,null,0,0,null,null,null,null,null,null,null,null,null,null,0,0,null,null,null,null,null,null,null,null,null,null,0,0,null,null,null,null,null,null,{"$error":"#N/A"},{"$error":"#N/A"}]
[143,null,null,null,null,null,null,null,null,null,null,null,null,0,0,null,null,null,null,null,null,null,null,null,null,0,0,null,null,null,null,null,null,null,null,null,null,0,0,null,null,null,null,null,null,null,null,null,null,0,0,null,null,null,null,null,null,{"$error":"#N/A"},{"$error":"#N/A"}]
[144,null,null,null,null,null,null,null,null,null,null,null,null,0,0,null,null,null,null,null,null,null,null,null,null,0,0,null,null,null,null,null,null,null,null,null,null,0,0,null,null,null,null,null,null,null,null,null,null,0,0,null,null,null,null,null,null,{"$error":"#N/A"},{"$error":"#N/A"}]
[145,null,null,null,null,null,null,null,null,null,null,null,null,0,0,null,null,null,null,null,null,null,null,null,null,0,0,null,null,null,null,null,null,null,null,null,null,0,0,null,null,null,null,null,null,null,null,null,null,0,0,null,null,null,null,null,null,{"$error":"#N/A"},{"$error":"#N/A"}]
[146,null,null,null,null,null,null,null,null,null,null,null,null,0,0,null,null,null,null,null,null,null,null,null,null,0,0,null,null,null,null,null,null,null,null,null,null,0,0,null,null,null,null,null,null,null,null,null,null,0,0,null,null,null,null,null,null,{"$error":"#N/A"},{"$error":"#N/A"}]
[147,null,null,null,null,null,null,null,null,null,null,null,null,0,0,null,null,null,null,null,null,null,null,null,null,0,0,null,null,null,null,null,null,null,null,null,null,0,0,null,null,null,null,null,null,null,null,null,null,0,0,null,null,null,null,null,null,{"$error":"#N/A"},{"$error":"#N/A"}]
[148,null,null,null,null,null,null,null,null,null,null,null,null,0,0,null,null,null,null,null,null,null,null,null,null,0,0,null,null,null,null,null,null,null,null,null,null,0,0,null,null,null,null,null,null,null,null,null,null,0,0,null,null,null,null,null,null,{"$error":"#N/A"},{"$error":"#N/A"}]
[149,null,null,null,null,null,null,null,null,null,null,null,null,0,0,null,null,null,null,null,null,null,null,null,null,0,0,null,null,null,null,null,null,null,null,null,null,0,0,null,null,null,null,null,null,null,null,null,null,0,0,null,null,null,null,null,null,{"$error":"#N/A"},{"$error":"#N/A"}]
[150,null,null,null,null,null,null,null,null,null,null,null,null,0,0,null,null,null,null,null,null,null,null,null,null,0,0,null,null,null,null,null,null,null,null,null,null,0,0,null,null,null,null,null,null,null,null,null,null,0,0,null,null,null,null,null,null,{"$error":"#N/A"},{"$error":"#N/A"}]
[151,null,null,null,null,null,null,null,null,null,null,null,null,0,0,null,null,null,null,null,null,null,null,null,null,0,0,null,null,null,null,null,null,null,null,null,null,0,0,null,null,null,null,null,null,null,null,null,null,0,0,null,null,null,null,null,null,{"$error":"#N/A"},{"$error":"#N/A"}]
[152,null,null,null,null,null,null,null,null,null,null,null,null,0,0,null,null,null,null,null,null,null,null,null,null,0,0,null,null,null,null,null,null,null,null,null,null,0,0,null,null,null,null,null,null,null,null,null,null,0,0,null,null,null,null,null,null,{"$error":"#N/A"},{"$error":"#N/A"}]
[153,null,null,null,null,null,null,null,null,null,null,null,null,0,0,null,null,null,null,null,null,null,null,null,null,0,0,null,null,null,null,null,null,null,null,null,null,0,0,null,null,null,null,null,null,null,null,null,null,0,0,null,null,null,null,null,null,{"$error":"#N/A"},{"$error":"#N/A"}]
[154,null,null,null,null,null,null,null,null,null,null,null,null,0,0,null,null,null,null,null,null,null,null,null,null,0,0,null,null,null,null,null,null,null,null,null,null,0,0,null,null,null,null,null,null,null,null,null,null,0,0,null,null,null,null,null,null,{"$error":"#N/A"},{"$error":"#N/A"}]
[155,null,null,null,null,null,null,null,null,null,null,null,null,0,0,null,null,null,null,null,null,null,null,null,null,0,0,null,null,null,null,null,null,null,null,null,null,0,0,null,null,null,null,null,null,null,null,null,null,0,0,null,null,null,null,null,null,{"$error":"#N/A"},{"$error":"#N/A"}]
[156,null,null,null,null,null,null,null,null,null,null,null,null,0,0,null,null,null,null,null,null,null,null,null,null,0,0,null,null,null,null,null,null,null,null,null,null,0,0,null,null,null,null,null,null,null,null,null,null,0,0,null,null,null,null,null,null,{"$error":"#N/A"},{"$error":"#N/A"}]
[157,null,null,null,null,null,null,null,null,null,null,null,null,0,0,null,null,null,null,null,null,null,null,null,null,0,0,null,null,null,null,null,null,null,null,null,null,0,0,null,null,null,null,null,null,null,null,null,null,0,0,null,null,null,null,null,null,{"$error":"#N/A"},{"$error":"#N/A"}]
[158,null,null,null,null,null,null,null,null,null,null,null,null,0,0,null,null,null,null,null,null,null,null,null,null,0,0,null,null,null,null,null,null,null,null,null,null,0,0,null,null,null,null,null,null,null,null,null,null,0,0,null,null,null,null,null,null,{"$error":"#N/A"},{"$error":"#N/A"}]
[159,null,null,null,null,null,null,null,null,null,null,null,null,0,0,null,null,null,null,null,null,null,null,null,null,0,0,null,null,null,null,null,null,null,null,null,null,0,0,null,null,null,null,null,null,null,null,null,null,0,0,null,null,null,null,null,null,{"$error":"#N/A"},{"$error":"#N/A"}]
[160,null,null,null,null,null,null,null,null,null,null,null,null,0,0,null,null,null,null,null,null,null,null,null,null,0,0,null,null,null,null,null,null,null,null,null,null,0,0,null,null,null,null,null,null,null,null,null,null,0,0,null,null,null,null,null,null,{"$error":"#N/A"},{"$error":"#N/A"}]
[161,null,null,null,null,null,null,null,null,null,null,null,null,0,0,null,null,null,null,null,null,null,null,null,null,0,0,null,null,null,null,null,null,null,null,null,null,0,0,null,null,null,null,null,null,null,null,null,null,0,0,null,null,null,null,null,null,{"$f":"LOOKUP(2,1/(($E$2:$BE$2=\"Опл\")*(E163:BE163>0)),E163:BE163)","v":{"$error":"#N/A"}},{"$f":"LOOKUP(2,1/(($E$2:$BE$2=\"Дата\")*(E163:BE163>0)),E163:BE163)","v":{"$error":"#N/A"}}]
[162,null,null,null,null,null,null,null,null,null,null,null,null,0,0,null,null,null,null,null,null,null,null,null,null,0,0,null,null,null,null,null,null,null,null,null,null,0,0,null,null,null,null,null,null,null,null,null,null,0,0,null,null,null,null,null,null,{"$error":"#N/A"},{"$error":"#N/A"}]
[163,null,null,null,null,null,null,null,null,null,null,null,null,0,0,null,null,null,null,null,null,null,null,null,null,0,0,null,null,null,null,null,null,null,null,null,null,0,0,null,null,null,null,null,null,null,null,null,null,0,0,null,null,null,null,null,null,{"$error":"#N/A"},{"$error":"#N/A"}]
[164,null,null,null,null,null,null,null,null,null,null,null,null,0,0,null,null,null,null,null,null,null,null,null,null,0,0,null,null,null,null,null,null,null,null,null,null,0,0,null,null,null,null,null,null,null,null,null,null,0,0,null,null,null,null,null,null,{"$error":"#N/A"},{"$error":"#N/A"}]
[165,null,null,null,null,null,null,null,null,null,null,null,null,0,0,null,null,null,null,null,null,null,null,null,null,0,0,null,null,null,null,null,null,null,null,null,null,0,0,null,null,null,null,null,null,null,null,null,null,0,0,null,null,null,null,null,null,{"$error":"#N/A"},{"$error":"#N/A"}]
[166,null,null,null,null,null,null,null,null,null,null,null,null,0,0,null,null,null,null,null,null,null,null,null,null,0,0,null,null,null,null,null,null,null,null,null,null,0,0,null,null,null,null,null,null,null,null,null,null,0,0,null,null,null,null,null,null,{"$error":"#N/A"},{"$error":"#N/A"}]
[167,null,null,null,null,null,null,null,null,null,null,null,null,0,0,null,null,null,null,null,null,null,null,null,null,0,0,null,null,null,null,null,null,null,null,null,null,0,0,null,null,null,null,null,null,null,null,null,null,0,0,null,null,null,null,null,null,{"$error":"#N/A"},{"$error":"#N/A"}]
[168,null,null,null,null,null,null,null,null,null,null,null,null,0,0,null,null,null,null,null,null,null,null,null,null,0,0,null,null,null,null,null,null,null,null,null,null,0,0,null,null,null,null,null,null,null,null,null,null,0,0,null,null,null,null,null,null,{"$error":"#N/A"},{"$error":"#N/A"}]
[169,null,null,null,null,null,null,null,null,null,null,null,null,0,0,null,null,null,null,null,null,null,null,null,null,0,0,null,null,null,null,null,null,null,null,null,null,0,0,null,null,null,null,null,null,null,null,null,null,0,0,null,null,null,null,null,null,{"$error":"#N/A"},{"$error":"#N/A"}]
[170,null,null,null,null,null,null,null,null,null,null,null,null,0,0,null,null,null,null,null,null,null,null,null,null,0,0,null,null,null,null,null,null,null,null,null,null,0,0,null,null,null,null,null,null,null,null,null,null,0,0,null,null,null,null,null,null,{"$error":"#N/A"},{"$error":"#N/A"}]
[171,null,null,null,null,null,null,null,null,null,null,null,null,0,0,null,null,null,null,null,null,null,null,null,null,0,0,null,null,null,null,null,null,null,null,null,null,0,0,null,null,null,null,null,null,null,null,null,null,0,0,null,null,null,null,null,null,{"$error":"#N/A"},{"$error":"#N/A"}]
[172,null,null,null,null,null,null,null,null,null,null,null,null,0,0,null,null,null,null,null,null,null,null,null,null,0,0,null,null,null,null,null,null,null,null,null,null,0,0,null,null,null,null,null,null,null,null,null,null,0,0,null,null,null,null,null,null,{"$error":"#N/A"},{"$error":"#N/A"}]
[173,null,null,null,null,null,null,null,null,null,null,null,null,0,0,null,null,null,null,null,null,null,null,null,null,0,0,null,null,null,null,null,null,null,null,null,null,0,0,null,null,null,null,null,null,null,null,null,null,0,0,null,null,null,null,null,null,{"$error":"#N/A"},{"$error":"#N/A"}]
[174,null,null,null,null,null,null,null,null,null,null,null,null,0,0,null,null,null,null,null,null,null,null,null,null,0,0,null,null,null,null,null,null,null,null,null,null,0,0,null,null,null,null,null,null,null,null,null,null,0,0,null,null,null,null,null,null,{"$error":"#N/A"},{"$error":"#N/A"}]
[175,null,null,null,null,null,null,null,null,null,null,null,null,0,0,null,null,null,null,null,null,null,null,null,null,0,0,null,null,null,null,null,null,null,null,null,null,0,0,null,null,null,null,null,null,null,null,null,null,0,0,null,null,null,null,null,null,{"$error":"#N/A"},{"$error":"#N/A"}]
[176,null,null,null,null,null,null,null,null,null,null,null,null,0,0,null,null,null,null,null,null,null,null,null,null,0,0,null,null,null,null,null,null,null,null,null,null,0,0,null,null,null,null,null,null,null,null,null,null,0,0,null,null,null,null,null,null,{"$error":"#N/A"},{"$error":"#N/A"}]
[177,null,null,null,null,null,null,null,null,null,null,null,null,0,0,null,null,null,null,null,null,null,null,null,null,0,0,null,null,null,null,null,null,null,null,null,null,0,0,null,null,null,null,null,null,null,null,null,null,0,0,null,null,null,null,null,null,{"$error":"#N/A"},{"$error":"#N/A"}]
[178,null,null,null,null,null,null,null,null,null,null,null,null,0,0,null,null,null,null,null,null,null,null,null,null,0,0,null,null,null,null,null,null,null,null,null,null,0,0,null,null,null,null,null,null,null,null,null,null,0,0,null,null,null,null,null,null,{"$error":"#N/A"},{"$error":"#N/A"}]
[179,null,null,null,null,null,null,null,null,null,null,null,null,0,0,null,null,null,null,null,null,null,null,null,null,0,0,null,null,null,null,null,null,null,null,null,null,0,0,null,null,null,null,null,null,null,null,null,null,0,0,null,null,null,null,null,null,{"$error":"#N/A"},{"$error":"#N/A"}]
[180,null,null,null,null,null,null,null,null,null,null,null,null,0,0,null,null,null,null,null,null,null,null,null,null,0,0,null,null,null,null,null,null,null,null,null,null,0,0,null,null,null,null,null,null,null,null,null,null,0,0,null,null,null,null,null,null,{"$error":"#N/A"},{"$error":"#N/A"}]
[181,null,null,null,null,null,null,null,null,null,null,null,null,0,0,null,null,null,null,null,null,null,null,null,null,0,0,null,null,null,null,null,null,null,null,null,null,0,0,null,null,null,null,null,null,null,null,null,null,0,0,null,null,null,null,null,null,{"$error":"#N/A"},{"$error":"#N/A"}]
[182,null,null,null,null,null,null,null,null,null,null,null,null,0,0,null,null,null,null,null,null,null,null,null,null,0,0,null,null,null,null,null,null,null,null,null,null,0,0,null,null,null,null,null,null,null,null,null,null,0,0,null,null,null,null,null,null,{"$error":"#N/A"},{"$error":"#N/A"}]
[183,null,null,null,null,null,null,null,null,null,null,null,null,0,0,null,null,null,null,null,null,null,null,null,null,0,0,null,null,null,null,null,null,null,null,null,null,0,0,null,null,null,null,null,null,null,null,null,null,0,0,null,null,null,null,null,null,{"$error":"#N/A"},{"$error":"#N/A"}]
[184,null,null,null,null,null,null,null,null,null,null,null,null,0,0,null,null,null,null,null,null,null,null,null,null,0,0,null,null,null,null,null,null,null,null,null,null,0,0,null,null,null,null,null,null,null,null,null,null,0,0,null,null,null,null,null,null,{"$error":"#N/A"},{"$error":"#N/A"}]
[185,null,null,null,null,null,null,null,null,null,null,null,null,0,0,null,null,null,null,null,null,null,null,null,null,0,0,null,null,null,null,null,null,null,null,null,null,0,0,null,null,null,null,null,null,null,null,null,null,0,0,null,null,null,null,null,null,{"$error":"#N/A"},{"$error":"#N/A"}]
[186,null,null,null,null,null,null,null,null,null,null,null,null,0,0,null,null,null,null,null,null,null,null,null,null,0,0,null,null,null,null,null,null,null,null,null,null,0,0,null,null,null,null,null,null,null,null,null,null,0,0,null,null,null,null,null,null,{"$error":"#N/A"},{"$error":"#N/A"}]
[187,null,null,null,null,null,null,null,null,null,null,null,null,0,0,null,null,null,null,null,null,null,null,null,null,0,0,null,null,null,null,null,null,null,null,null,null,0,0,null,null,null,null,null,null,null,null,null,null,0,0,null,null,null,null,null,null,{"$error":"#N/A"},{"$error":"#N/A"}]
[188,null,null,null,null,null,null,null,null,null,null,null,null,0,0,null,null,null,null,null,null,null,null,null,null,0,0,null,null,null,null,null,null,null,null,null,null,0,0,null,null,null,null,null,null,null,null,null,null,0,0,null,null,null,null,null,null,{"$error":"#N/A"},{"$error":"#N/A"}]
[189,null,null,null,null,null,null,null,null,null,null,null,null,0,0,null,null,null,null,null,null,null,null,null,null,0,0,null,null,null,null,null,null,null,null,null,null,0,0,null,null,null,null,null,null,null,null,null,null,0,0,null,null,null,null,null,null,{"$error":"#N/A"},{"$error":"#N/A"}]
[190,null,null,null,null,null,null,null,null,null,null,null,null,0,0,null,null,null,null,null,null,null,null,null,null,0,0,null,null,null,null,null,null,null,null,null,null,0,0,null,null,null,null,null,null,null,null,null,null,0,0,null,null,null,null,null,null,{"$error":"#N/A"},{"$error":"#N/A"}]
[191,null,null,null,null,null,null,null,null,null,null,null,null,0,0,null,null,null,null,null,null,null,null,null,null,0,0,null,null,null,null,null,null,null,null,null,null,0,0,null,null,null,null,null,null,null,null,null,null,0,0,null,null,null,null,null,null,{"$error":"#N/A"},{"$error":"#N/A"}]
[192,null,null,null,null,null,null,null,null,null,null,null,null,0,0,null,null,null,null,null,null,null,null,null,null,0,0,null,null,null,null,null,null,null,null,null,null,0,0,null,null,null,null,null,null,null,null,null,null,0,0,null,null,null,null,null,null,{"$error":"#N/A"},{"$error":"#N/A"}]
[193,null,null,null,null,null,null,null,null,null,null,null,null,0,0,null,null,null,null,null,null,null,null,null,null,0,0,null,null,null,null,null,null,null,null,null,null,0,0,null,null,null,null,null,null,null,null,null,null,0,0,null,null,null,null,null,null,{"$f":"LOOKUP(2,1/(($E$2:$BE$2=\"Опл\")*(E195:BE195>0)),E195:BE195)","v":{"$error":"#N/A"}},{"$f":"LOOKUP(2,1/(($E$2:$BE$2=\"Дата\")*(E195:BE195>0)),E195:BE195)","v":{"$error":"#N/A"}}]
[194,null,null,null,null,null,null,null,null,null,null,null,null,{"$f":"SUM(E196,H196,K196)","v":0},{"$f":"F196+I196+L196","v":0},null,null,null,null,null,null,null,null,null,null,{"$f":"Q196+T196+W196","v":0},{"$f":"R196+U196+X196","v":0},null,null,null,null,null,null,null,null,null,null,{"$f":"AC196+AF196+AI196","v":0},{"$f":"AD196+AG196+AJ196","v":0},null,null,null,null,null,null,null,null,null,null,{"$f":"AO196+AR196+AU196","v":0},{"$f":"AP196+AS196+AV196","v":0},null,null,null,null,null,null,{"$error":"#N/A"},{"$error":"#N/A"}]
[195,null,null,null,null,null,null,null,null,null,null,null,null,0,0,null,null,null,null,null,null,null,null,null,null,0,0,null,null,null,null,null,null,null,null,null,null,0,0,null,null,null,null,null,null,null,null,null,null,0,0,null,null,null,null,null,null,{"$error":"#N/A"},{"$error":"#N/A"}]
[196,null,null,null,null,null,null,null,null,null,null,null,null,0,0,null,null,null,null,null,null,null,null,null,null,0,0,null,null,null,null,null,null,null,null,null,null,0,0,null,null,null,null,null,null,null,null,null,null,0,0,null,null,null,null,null,null,{"$error":"#N/A"},{"$error":"#N/A"}]
[197,null,null,null,null,null,null,null,null,null,null,null,null,0,0,null,null,null,null,null,null,null,null,null,null,0,0,null,null,null,null,null,null,null,null,null,null,0,0,null,null,null,null,null,null,null,null,null,null,0,0,null,null,null,null,null,null,{"$error":"#N/A"},{"$error":"#N/A"}]
[198,null,null,null,null,null,null,null,null,null,null,null,null,0,0,null,null,null,null,null,null,null,null,null,null,0,0,null,null,null,null,null,null,null,null,null,null,0,0,null,null,null,null,null,null,null,null,null,null,0,0,null,null,null,null,null,null,{"$error":"#N/A"},{"$error":"#N/A"}]

{"sheet":"Лист2","index":1,"n_rows":23,"n_cols":10,"rows_kept":23,"cut":false,"hidden":true,"merged":[[19,2,19,4],[19,5,19,6],[19,7,20,8],[21,2,21,9],[16,2,16,5],[16,6,16,9],[17,2,17,3],[17,4,17,6],[18,3,18,4],[18,7,18,9],[9,2,9,9],[12,2,12,6],[13,2,13,7],[14,2,14,8],[15,2,15,3],[15,4,15,9],[5,2,5,3],[5,4,5,6],[6,3,6,4],[6,7,6,8],[7,2,7,4],[7,5,7,6],[7,7,8,8],[4,2,4,5],[4,6,4,9],[0,2,0,6],[1,2,1,7],[2,2,2,8],[3,2,3,3],[3,4,3,9]]}
[null,"Извещение","получатель платежа: ООО\"ОблСпецТранс\""]
[null,null,"ИНН 7831000080 № счета получателя 40702810200600007040",null,null,null,null,null,null,"БИК 044030755"]
[null,null,"Наименование банка получателя:  ОАО Банк \"Александровский\""]
[null,null,"Плательщик ;",null,{"$f":"'1'!B3","v":"Иванов Тван Иваныч"}]
[null,null,"Ленинградская обл.Выборгский р-н п.",null,null,null,{"$f":"'1'!D3","v":"Приветн"}]
[null,null,"Вид платежа:                                 ",null,"Вывоз мусора по договору №",null,null,{"$f":"'1'!C3","v":"01\\01\\01"},"от "]
[null,null,"Период:",null,null,null,"сумма "]
[null,"кассир","задолжность на конец года ",null,null,{"$f":"'1'!BD3","v":0},null,"последний платеж дата и сумма ",null,{"$f":"'1'!BG3","v":"2014-02-12"}]
[null,null,null,null,null,null,null,null,null,{"$f":"'1'!BF3","v":1000}]
[null,null,"С условиями приема банком суммы,указанной в плотежном документе ознакомлен и согласен "]
[null,null,"дата ",null,null,null,"подпись"]
[]
[null,"Извещение","получатель платежа: ООО\"ОблСпецТранс\""]
[null,null,"ИНН 7831000080 № счета получателя 40702810200600007040",null,null,null,null,null,null,"БИК 044030755"]
[null,null,"Наименование банка получателя:  ОАО Банк \"Александровский\""]
[null,null,"Плательщик ;",null,{"$f":"E4","v":"Иванов Тван Иваныч"}]
[null,null,"Ленинградская обл.Выборгский р-н п.",null,null,null,{"$f":"G5","v":"Приветн"}]
[null,null,"Вид платежа:                                 ",null,"Вывоз мусора по договору №",null,null,{"$f":"H6","v":"01\\01\\01"},"от ",{"$f":"J6","v":0}]
[null,null,"Период:",{"$f":"D7","v":0},null,null,"сумма ",{"$f":"H7","v":0}]
[null,"кассир","задолжность на конец года ",null,null,{"$f":"F8","v":0},null,"последний платеж дата и сумма ",null,{"$f":"J8","v":"2014-02-12"}]
[null,null,null,null,null,null,null,null,null,{"$f":"J9","v":1000}]
[null,null,"С условиями приема банком суммы,указанной в плотежном документе ознакомлен и согласен "]
[null,null,"дата ",null,null,null,"подпись"]

{"sheet":"Лист2 (2)","index":2,"n_rows":23,"n_cols":10,"rows_kept":23,"cut":false,"hidden":true,"merged":[[19,2,19,4],[19,5,19,6],[19,7,20,8],[21,2,21,9],[16,2,16,5],[16,6,16,9],[17,2,17,3],[17,4,17,6],[18,3,18,4],[18,7,18,9],[9,2,9,9],[12,2,12,6],[13,2,13,7],[14,2,14,8],[15,2,15,3],[15,4,15,9],[5,2,5,3],[5,4,5,6],[6,3,6,4],[6,7,6,8],[7,2,7,4],[7,5,7,6],[7,7,8,8],[0,2,0,6],[1,2,1,7],[2,2,2,8],[3,2,3,3],[3,4,3,9],[4,2,4,5],[4,6,4,9]]}
[null,"Извещение","получатель платежа: ООО\"ОблСпецТранс\""]
[null,null,"ИНН 7831000080 № счета получателя 40702810200600007040",null,null,null,null,null,null,"БИК 044030755"]
[null,null,"Наименование банка получателя:  ОАО Банк \"Александровский\""]
[null,null,"Плательщик ;",null,"Это лист 2"]
[null,null,"Ленинградская обл.Выборгский р-н п.",null,null,null,{"$f":"'1'!D3","v":"Приветн"}]
[null,null,"Вид платежа:                                 ",null,"Вывоз мусора по договору №",null,null,{"$f":"'1'!C3","v":"01\\01\\01"},"от "]
[null,null,"Период:",null,null,null,"сумма "]
[null,"кассир","задолжность на конец года ",null,null,{"$f":"'1'!BD3","v":0},null,"последний платеж дата и сумма ",null,{"$f":"'1'!BG3","v":"2014-02-12"}]
[null,null,null,null,null,null,null,null,null,{"$f":"'1'!BF3","v":1000}]
[null,null,"С условиями приема банком суммы,указанной в плотежном документе ознакомлен и согласен "]
[null,null,"дата ",null,null,null,"подпись"]
[]
[null,"Извещение","получатель платежа: ООО\"ОблСпецТранс\""]
[null,null,"ИНН 7831000080 № счета получателя 40702810200600007040",null,null,null,null,null,null,"БИК 044030755"]
[null,null,"Наименование банка получателя:  ОАО Банк \"Александровский\""]
[null,null,"Плательщик ;",null,{"$f":"E4","v":"Это лист 2"}]
[null,null,"Ленинградская обл.Выборгский р-н п.",null,null,null,{"$f":"G5","v":"Приветн"}]
[null,null,"Вид платежа:                                 ",null,"Вывоз мусора по договору №",null,null,{"$f":"H6","v":"01\\01\\01"},"от ",{"$f":"J6","v":0}]
[null,null,"Период:",{"$f":"D7","v":0},null,null,"сумма ",{"$f":"H7","v":0}]
[null,"кассир","задолжность на конец года ",null,null,{"$f":"F8","v":0},null,"последний платеж дата и сумма ",null,{"$f":"J8","v":"2014-02-12"}]
[null,null,null,null,null,null,null,null,null,{"$f":"J9","v":1000}]
[null,null,"С условиями приема банком суммы,указанной в плотежном документе ознакомлен и согласен "]
[null,null,"дата ",null,null,null,"подпись"]